bitfinex-derivatives/quotes_BTCF0:USTF0_20251030
["timestamp","ask_amount","ask_price","bid_price","bid_amount"]
[1761844496903,0.0929711,107570.0,107560.0,1.1636797]
[1761844497303,0.1496911,107570.0,107560.0,0.74614]
[1761844497499,0.1496911,107570.0,107560.0,1.07066]
[1761844498313,0.393115,107570.0,107560.0,0.74614]
[1761844498515,0.393115,107570.0,107560.0,1.07066]
[1761844498924,0.1496911,107570.0,107560.0,1.07066]
[1761844499219,0.1496911,107570.0,107560.0,1.07062]
[1761844499522,0.1496911,107570.0,107560.0,0.74614]
[1761844499723,0.1496911,107570.0,107560.0,1.07066]
[1761844500622,0.1273611,107570.0,107560.0,1.07066]
[1761844500921,0.0929711,107570.0,107560.0,1.67066]
[1761844501121,0.1496911,107570.0,107560.0,0.74614]
[1761844501310,0.1496911,107570.0,107560.0,1.07058]
[1761844501513,0.1496911,107570.0,107560.0,0.74614]
[1761844501717,0.1496911,107570.0,107560.0,1.07058]
[1761844502622,0.17255295,107570.0,107560.0,1.07058]
[1761844504225,0.17255295,107570.0,107560.0,0.74614]
[1761844504518,0.17255295,107570.0,107560.0,1.07054]
[1761844504823,0.17255295,107570.0,107560.0,1.07042]
[1761844505809,0.43597685,107570.0,107560.0,0.002]
[1761844506009,0.56597685,107570.0,107560.0,0.002]
[1761844506221,0.43597685,107570.0,107560.0,0.02454]
[1761844507018,0.43597685,107570.0,107560.0,0.002]
[1761844507219,0.73077002,107570.0,107560.0,0.002]
[1761844507528,1.09157002,107570.0,107560.0,0.002]
[1761844508420,0.44077002,107570.0,107560.0,0.01327]
[1761844508624,1.11157002,107570.0,107560.0,0.02454]
[1761844508923,1.43889002,107570.0,107560.0,0.002]
[1761844509117,0.05672,107550.0,107540.0,0.01605]
[1761844509326,0.34300575,107550.0,107540.0,0.02732]
[1761844509517,0.32300575,107550.0,107540.0,0.3518]
[1761844510415,0.32300575,107550.0,107540.0,0.02732]
[1761844511220,0.43599405,107550.0,107540.0,0.03232]
[1761844511426,0.43599405,107550.0,107540.0,0.03532]
[1761844511622,0.52599405,107550.0,107540.0,0.03532]
[1761844511816,0.70599405,107550.0,107540.0,0.03032]
[1761844512016,0.70599405,107550.0,107540.0,0.03232]
[1761844512212,0.77932944,107550.0,107540.0,0.03232]
[1761844512415,0.46646759,107550.0,107540.0,0.03232]
[1761844512612,0.48646759,107550.0,107540.0,0.3572]
[1761844512927,0.05672,107530.0,107520.0,0.38334]
[1761844513116,0.05672,107530.0,107520.0,1.06902]
[1761844513726,0.03439,107530.0,107520.0,1.06902]
[1761844513919,0.22304369,107550.0,107540.0,0.02254]
[1761844514123,0.22304369,107550.0,107540.0,0.34742]
[1761844514624,0.22304369,107550.0,107540.0,0.70822]
[1761844515526,0.46646759,107550.0,107540.0,0.71022]
[1761844515725,0.46646759,107550.0,107540.0,0.71122]
[1761844515925,0.46646759,107550.0,107540.0,0.38634]
[1761844516127,0.22304369,107550.0,107540.0,0.71118]
[1761844516321,0.46646759,107550.0,107540.0,0.71118]
[1761844516726,0.46646759,107550.0,107540.0,0.69991]
[1761844516931,0.46646759,107550.0,107540.0,0.71118]
[1761844517628,0.46646759,107550.0,107540.0,0.38634]
[1761844517828,0.46646759,107550.0,107540.0,0.71114]
[1761844518126,0.75646759,107550.0,107540.0,0.003]
[1761844518427,0.05823,107530.0,107520.0,0.70806]
[1761844518631,0.3016539,107530.0,107520.0,0.70806]
[1761844518826,0.05823,107530.0,107520.0,0.70806]
[1761844519032,0.05823,107540.0,107530.0,0.02254]
[1761844519233,0.05823,107540.0,107530.0,0.38334]
[1761844519420,0.06740642,107540.0,107530.0,0.38334]
[1761844519622,0.05823,107540.0,107530.0,0.38334]
[1761844520622,0.3016539,107540.0,107530.0,0.38334]
[1761844520837,0.3016539,107540.0,107530.0,0.02254]
[1761844521132,0.3016539,107540.0,107530.0,0.38334]
[1761844521332,0.05823,107540.0,107530.0,0.38334]
[1761844521521,0.05823,107540.0,107530.0,0.38834]
[1761844522725,0.3016539,107540.0,107530.0,0.70175]
[1761844522925,0.3016539,107540.0,107530.0,0.71302]
[1761844523132,0.05823,107540.0,107530.0,0.71302]
[1761844523428,0.06769147,107540.0,107530.0,0.71302]
[1761844523726,0.05823,107540.0,107530.0,0.71302]
[1761844524737,0.05823,107540.0,107530.0,0.38834]
[1761844524927,0.0676691,107540.0,107530.0,0.71294]
[1761844525234,0.331093,107540.0,107530.0,0.71294]
[1761844525427,0.311093,107540.0,107530.0,0.71294]
[1761844526438,0.331093,107540.0,107530.0,0.71294]
[1761844526636,0.591093,107540.0,107530.0,0.7129]
[1761844527237,0.591093,107540.0,107530.0,0.005]
[1761844527627,0.954693,107540.0,107530.0,0.005]
[1761844527833,0.05681,107520.0,107510.0,1.5]
[1761844528032,0.3002339,107520.0,107510.0,1.5]
[1761844528339,0.05681,107520.0,107510.0,1.82468]
[1761844528533,0.05681,107520.0,107510.0,2.18548]
[1761844528725,0.05681,107520.0,107510.0,2.18552]
[1761844529128,0.05681,107520.0,107510.0,2.18652]
[1761844529328,0.05681,107530.0,107520.0,0.03254]
[1761844529523,0.4272391,107540.0,107530.0,0.03254]
[1761844529727,0.0664391,107540.0,107530.0,0.35726]
[1761844530332,0.01322,107540.0,107530.0,0.35726]
[1761844530531,0.057,107540.0,107530.0,0.35726]
[1761844531240,0.057,107540.0,107530.0,0.71806]
[1761844531441,0.062,107540.0,107530.0,0.71806]
[1761844532140,0.062,107540.0,107530.0,0.7181]
[1761844532839,0.062,107540.0,107530.0,0.35718]
[1761844532840,0.3054239,107540.0,107530.0,0.35718]
[1761844533238,0.3054239,107540.0,107530.0,0.03254]
[1761844533436,0.5854239,107540.0,107530.0,0.35714]
[1761844533640,0.04378,107530.0,107520.0,0.39334]
[1761844533838,0.2872039,107530.0,107520.0,0.71794]
[1761844534038,0.04378,107530.0,107520.0,0.71794]
[1761844534744,0.3024239,107540.0,107530.0,0.03254]
[1761844534944,0.3004239,107540.0,107530.0,0.35714]
[1761844535638,0.6612239,107540.0,107530.0,0.03254]
[1761844535842,0.9542239,107540.0,107530.0,0.3571]
[1761844536242,0.9562239,107540.0,107530.0,0.3571]
[1761844537542,0.97917668,107540.0,107530.0,0.3571]
[1761844537745,0.68917668,107540.0,107530.0,0.3571]
[1761844538242,0.08495278,107540.0,107530.0,0.7179]
[1761844538543,0.005,107540.0,107530.0,0.72917]
[1761844539138,0.06181,107540.0,107530.0,0.7179]
[1761844541345,0.01803,107540.0,107530.0,0.7179]
[1761844541650,0.005,107540.0,107530.0,1.0543296]
[1761844541836,0.005,107540.0,107530.0,0.9613239]
[1761844542038,0.005,107540.0,107530.0,0.9641239]
[1761844542545,0.005,107540.0,107530.0,1.0571296]
[1761844542744,0.004,107540.0,107530.0,1.0571296]
[1761844543042,0.004,107540.0,107530.0,1.06650867]
[1761844543240,0.004,107540.0,107530.0,1.66650867]
[1761844543546,0.0929883,107550.0,107540.0,0.03254]
[1761844543743,0.0929883,107550.0,107540.0,0.6395639]
[1761844543945,0.0929883,107550.0,107540.0,0.6367639]
[1761844544443,0.1367683,107550.0,107540.0,0.39334]
[1761844544641,0.3801922,107550.0,107540.0,0.39334]
[1761844544846,0.1367683,107550.0,107540.0,0.71762]
[1761844545045,0.3801922,107550.0,107540.0,0.71758]
[1761844545438,0.1377683,107550.0,107540.0,0.71758]
[1761844545937,0.1367683,107550.0,107540.0,0.71758]
[1761844546138,0.1397683,107550.0,107540.0,0.39334]
[1761844546341,0.0959883,107550.0,107540.0,0.71758]
[1761844546741,0.1186583,107550.0,107540.0,0.71758]
[1761844546947,0.1397683,107550.0,107540.0,0.71758]
[1761844547847,0.1397683,107550.0,107540.0,0.39334]
[1761844547848,0.1427683,107550.0,107540.0,0.39334]
[1761844548035,0.1427683,107550.0,107540.0,0.71746]
[1761844548540,0.1346883,107550.0,107540.0,0.71746]
[1761844548735,0.1346883,107550.0,107540.0,0.39334]
[1761844548940,0.0979883,107550.0,107540.0,0.72246]
[1761844549243,0.1527983,107550.0,107540.0,0.71746]
[1761844549946,0.1527983,107550.0,107540.0,0.39334]
[1761844550141,0.1527983,107550.0,107540.0,0.71742]
[1761844550646,0.1527983,107550.0,107540.0,0.39334]
[1761844551144,0.56068574,107550.0,107540.0,0.03254]
[1761844551345,0.82068574,107550.0,107540.0,0.35654]
[1761844551543,1.18148574,107550.0,107540.0,0.03254]
[1761844551850,0.7735983,107550.0,107540.0,0.35654]
[1761844552347,0.6235983,107550.0,107540.0,0.03254]
[1761844552540,0.80653476,107550.0,107540.0,0.35654]
[1761844552741,0.53653476,107550.0,107540.0,0.35654]
[1761844552943,0.17573476,107550.0,107540.0,0.03254]
[1761844553146,0.29573476,107550.0,107540.0,0.03254]
[1761844553345,0.05727,107540.0,107530.0,0.39334]
[1761844553648,0.05727,107540.0,107530.0,0.71726]
[1761844554537,0.03421,107540.0,107530.0,0.71726]
[1761844555150,0.001,107540.0,107530.0,0.71726]
[1761844555346,0.03521,107540.0,107530.0,0.71726]
[1761844555647,0.05827,107540.0,107530.0,0.71726]
[1761844555850,0.05827,107540.0,107530.0,0.39334]
[1761844556046,0.05827,107540.0,107530.0,0.71718]
[1761844557144,0.05827,107540.0,107530.0,0.39334]
[1761844557344,0.05827,107540.0,107530.0,0.71718]
[1761844557546,0.05827,107540.0,107530.0,0.7171]
[1761844557941,0.05727,107530.0,107520.0,0.39334]
[1761844558143,0.05727,107530.0,107520.0,0.7171]
[1761844558549,0.05727,107530.0,107520.0,0.39334]
[1761844558743,0.05727,107530.0,107520.0,0.7171]
[1761844558940,0.35727,107530.0,107520.0,0.03254]
[1761844559145,0.76515744,107530.0,107520.0,0.03254]
[1761844559345,1.12595744,107530.0,107520.0,0.03254]
[1761844560451,1.12595744,107530.0,107510.0,2.18524]
[1761844560452,0.05727,107520.0,107510.0,2.18524]
[1761844560647,0.05727,107520.0,107510.0,1.8608]
[1761844560851,0.33727,107520.0,107510.0,1.5]
[1761844561052,0.74515744,107520.0,107510.0,1.5]
[1761844561249,1.10595744,107520.0,107510.0,1.5]
[1761844561562,1.10595744,107520.0,107500.0,0.68516]
[1761844561757,0.0442,107500.0,107490.0,0.45997315]
[1761844561952,0.05727,107500.0,107490.0,0.45997315]
[1761844562256,0.05727,107500.0,107490.0,1.95997315]
[1761844562441,0.05727,107500.0,107490.0,1.89334]
[1761844562646,0.06670898,107500.0,107490.0,1.89334]
[1761844563152,0.47459642,107500.0,107490.0,1.53554]
[1761844563455,0.06670898,107500.0,107490.0,1.8599]
[1761844563650,0.06670898,107500.0,107490.0,1.92675432]
[1761844563854,0.73459642,107500.0,107490.0,1.503]
[1761844564046,1.09539642,107500.0,107490.0,1.503]
[1761844564248,0.02114,107440.0,107430.0,0.1828901]
[1761844564449,0.64500591,107500.0,107430.0,0.1828901]
[1761844564450,0.32444,107460.0,107440.0,0.05801]
[1761844564653,1.18232744,107460.0,107450.0,0.04493]
[1761844564949,0.80433149,107460.0,107450.0,0.04493]
[1761844565155,0.36295806,107460.0,107450.0,0.37109]
[1761844565460,0.00915806,107460.0,107450.0,0.73189]
[1761844565955,0.01015806,107460.0,107450.0,0.73189]
[1761844566162,0.01015806,107460.0,107450.0,1.09269]
[1761844566347,0.01115806,107460.0,107450.0,1.09269]
[1761844567057,0.01515806,107460.0,107450.0,1.09269]
[1761844567261,0.01515806,107460.0,107450.0,0.40573]
[1761844567452,0.01515806,107460.0,107450.0,0.7098]
[1761844567652,0.4230455,107460.0,107450.0,0.37105]
[1761844567859,0.01515806,107460.0,107450.0,0.37105]
[1761844568258,0.01515806,107460.0,107450.0,0.73185]
[1761844568652,0.01515806,107460.0,107450.0,0.40573]
[1761844568957,0.01515806,107460.0,107450.0,0.73185]
[1761844569160,0.01315806,107460.0,107450.0,0.73185]
[1761844569366,0.01615806,107460.0,107450.0,0.73185]
[1761844570062,0.01615806,107460.0,107450.0,0.40573]
[1761844570262,0.01615806,107460.0,107450.0,0.73177]
[1761844570865,0.01415806,107460.0,107450.0,0.73177]
[1761844571557,0.01415806,107460.0,107450.0,1.83273234]
[1761844571861,0.76868744,107490.0,107480.0,0.05801]
[1761844572065,1.07868744,107490.0,107480.0,0.05801]
[1761844572253,1.07868744,107490.0,107480.0,0.03596]
[1761844572560,1.15440783,107490.0,107480.0,0.03596]
[1761844572755,1.51727542,107490.0,107470.0,0.37089]
[1761844572960,1.10658798,107490.0,107480.0,0.05801]
[1761844573363,0.48658798,107490.0,107480.0,0.05801]
[1761844573558,0.77938798,107490.0,107480.0,0.05801]
[1761844573761,1.40933738,107490.0,107460.0,0.05801]
[1761844573962,0.3608,107470.0,107460.0,0.05801]
[1761844574163,0.76875503,107470.0,107460.0,0.05801]
[1761844574363,0.36086759,107470.0,107460.0,0.12465392]
[1761844575056,6.759e-05,107470.0,107460.0,0.12465392]
[1761844575256,6.759e-05,107470.0,107460.0,0.48545392]
[1761844575457,0.00406759,107470.0,107460.0,0.48545392]
[1761844575657,0.00706759,107470.0,107460.0,0.48545392]
[1761844575852,0.00706759,107470.0,107460.0,0.57852012]
[1761844576569,0.00706759,107470.0,107460.0,1.1118762]
[1761844577153,0.00306759,107470.0,107460.0,1.1118762]
[1761844577358,0.00506759,107470.0,107460.0,1.1118762]
[1761844577760,1.10424642,107500.0,107490.0,0.04632]
[1761844577962,1.44424642,107500.0,107490.0,0.04632]
[1761844578566,0.70247578,107500.0,107490.0,0.04632]
[1761844578767,0.10247578,107500.0,107490.0,0.04632]
[1761844578961,0.11147578,107500.0,107490.0,0.04732]
[1761844579156,0.11147578,107500.0,107490.0,0.40812]
[1761844579560,0.1020368,107500.0,107490.0,0.40812]
[1761844580067,0.1020368,107500.0,107490.0,0.5011602]
[1761844580466,0.1020368,107500.0,107490.0,0.40812]
[1761844581563,0.87072424,107500.0,107490.0,0.04732]
[1761844581869,1.47352424,107500.0,107490.0,0.37332]
[1761844582168,1.47072424,107500.0,107490.0,0.37332]
[1761844582364,1.13072424,107500.0,107490.0,0.04732]
[1761844582569,1.73352424,107500.0,107490.0,0.001]
[1761844582768,1.55352424,107500.0,107490.0,0.001]
[1761844583167,1.79352424,107500.0,107490.0,0.001]
[1761844583557,0.92072424,107500.0,107490.0,0.04536]
[1761844585058,0.5128368,107500.0,107490.0,0.04536]
[1761844585262,0.1020368,107500.0,107490.0,0.40616]
[1761844586467,0.1020368,107500.0,107490.0,0.73232]
[1761844590967,0.1020368,107500.0,107490.0,0.8253604]
[1761844591175,0.1020368,107500.0,107490.0,0.73232]
[1761844592066,0.1020368,107500.0,107490.0,0.40616]
[1761844592367,0.50992424,107500.0,107490.0,0.3712]
[1761844592768,0.1020368,107500.0,107490.0,0.732]
[1761844593575,0.1020368,107500.0,107490.0,0.8250405]
[1761844594073,0.1020368,107500.0,107490.0,0.8250005]
[1761844594973,0.4248368,107500.0,107470.0,0.08330048]
[1761844595173,0.4248368,107500.0,107430.0,0.04436]
[1761844595174,0.40788744,107480.0,107430.0,0.04436]
[1761844595471,0.32712,107470.0,107440.0,0.01368]
[1761844595675,1.26991999,107470.0,107420.0,0.05804]
[1761844595974,1.26991999,107470.0,107420.0,0.82842048]
[1761844595975,0.3608,107450.0,107420.0,0.82842048]
[1761844596170,0.3608,107440.0,107420.0,0.13854048]
[1761844596372,0.68803038,107440.0,107420.0,0.3428]
[1761844596675,0.40788744,107430.0,107420.0,0.01368]
[1761844596865,0.40788744,107430.0,107420.0,0.03701]
[1761844597066,0.41438318,107430.0,107420.0,0.03701]
[1761844597463,0.42349481,107430.0,107420.0,0.03701]
[1761844597974,0.42349481,107430.0,107420.0,0.05904]
[1761844598376,0.01560737,107430.0,107420.0,0.06004]
[1761844598577,0.41438318,107430.0,107420.0,0.06504]
[1761844598777,0.00649574,107430.0,107420.0,0.14834048]
[1761844598976,0.00649574,107430.0,107420.0,0.14554048]
[1761844599279,0.77518318,107430.0,107420.0,0.02068]
[1761844599466,0.77518318,107430.0,107420.0,0.01868]
[1761844599672,0.77518318,107430.0,107420.0,0.02068]
[1761844600571,0.77518318,107430.0,107420.0,0.06504]
[1761844600771,0.77518318,107430.0,107420.0,0.007]
[1761844600972,0.77518318,107430.0,107420.0,0.02068]
[1761844601172,0.90518318,107430.0,107420.0,0.02068]
[1761844601475,0.90518318,107430.0,107420.0,0.007]
[1761844601681,0.77518318,107430.0,107420.0,0.007]
[1761844601976,1.08518318,107430.0,107420.0,0.007]
[1761844602480,0.0931098,107410.0,107400.0,1.89938]
[1761844602671,0.0931098,107410.0,107400.0,2.22894]
[1761844602877,0.09960964,107410.0,107400.0,2.42815058]
[1761844603275,0.09960964,107410.0,107400.0,2.09859058]
[1761844603469,0.08483407,107440.0,107430.0,0.04436]
[1761844603683,1.19128384,107450.0,107440.0,0.05804]
[1761844603872,1.20076272,107450.0,107440.0,0.05804]
[1761844604189,0.51784272,107450.0,107440.0,0.06084]
[1761844604389,0.1004764,107450.0,107440.0,0.06084]
[1761844604574,0.10590622,107450.0,107440.0,0.8670701]
[1761844605778,0.10690622,107450.0,107440.0,0.8670701]
[1761844606078,0.0940764,107450.0,107440.0,0.8670701]
[1761844606471,0.12187257,107450.0,107440.0,0.8670301]
[1761844607070,0.0940764,107450.0,107440.0,0.8670301]
[1761844607281,0.39299179,107480.0,107470.0,0.04436]
[1761844607470,0.4433395,107490.0,107480.0,0.05804]
[1761844607471,0.80074923,107490.0,107480.0,0.05804]
[1761844607676,0.82854241,107490.0,107480.0,0.14455831]
[1761844607876,0.42065497,107490.0,107480.0,0.05804]
[1761844608077,0.42065497,107490.0,107480.0,0.38744]
[1761844608078,0.44308062,107490.0,107480.0,0.38744]
[1761844608576,0.02779318,107490.0,107480.0,0.83475831]
[1761844608884,0.40788744,107500.0,107490.0,0.04436]
[1761844609088,0.50866235,107500.0,107490.0,0.13087831]
[1761844609294,0.50866235,107500.0,107490.0,0.04716]
[1761844609587,0.34442925,107500.0,107490.0,0.04716]
[1761844609887,0.35363184,107500.0,107490.0,0.04716]
[1761844610079,0.35363184,107500.0,107490.0,0.04436]
[1761844610783,0.71443184,107500.0,107490.0,0.04436]
[1761844611177,0.83443184,107500.0,107490.0,0.04436]
[1761844611380,1.60443184,107500.0,107480.0,0.05787]
[1761844611586,1.60443184,107500.0,107480.0,0.01468]
[1761844611587,0.60445434,107490.0,107480.0,0.01468]
[1761844611880,0.92214248,107490.0,107480.0,0.01368]
[1761844612286,0.63214248,107490.0,107480.0,0.01368]
[1761844612485,0.98499098,107490.0,107480.0,0.01368]
[1761844612875,0.66499098,107490.0,107480.0,0.01368]
[1761844613077,0.78499098,107490.0,107480.0,0.01368]
[1761844613279,0.78499098,107490.0,107470.0,0.35054]
[1761844613280,0.98499098,107490.0,107470.0,0.35054]
[1761844613484,0.60445434,107480.0,107470.0,0.45602831]
[1761844613681,0.63214248,107480.0,107470.0,0.45602831]
[1761844613977,0.27134248,107480.0,107470.0,0.45602831]
[1761844614185,0.27134248,107480.0,107470.0,0.81962831]
[1761844614483,0.27134248,107480.0,107470.0,0.73591]
[1761844614682,0.27134248,107480.0,107470.0,0.81962831]
[1761844615079,0.27734248,107480.0,107470.0,0.81962831]
[1761844615782,0.27634248,107480.0,107470.0,0.81962831]
[1761844615988,0.03268814,107480.0,107470.0,1.41962831]
[1761844616384,0.03568814,107480.0,107470.0,1.41962831]
[1761844616585,0.03568814,107480.0,107470.0,1.09050831]
[1761844616888,0.03568814,107480.0,107470.0,1.41954831]
[1761844617092,0.03568814,107480.0,107470.0,0.81954831]
[1761844617481,0.03268814,107480.0,107470.0,0.91260691]
[1761844617876,0.03268814,107480.0,107470.0,0.91540691]
[1761844618282,0.03268814,107480.0,107470.0,0.82234831]
[1761844618493,0.03268814,107480.0,107470.0,0.91260691]
[1761844619090,0.03068814,107480.0,107470.0,0.91260691]
[1761844619291,0.03068814,107480.0,107470.0,0.81954831]
[1761844619592,0.02968814,107480.0,107470.0,0.81954831]
[1761844620483,0.02968814,107480.0,107470.0,0.49050831]
[1761844620688,0.27334248,107480.0,107470.0,0.81930831]
[1761844621083,0.02968814,107480.0,107470.0,0.81930831]
[1761844621685,0.02968814,107480.0,107470.0,0.91236691]
[1761844621887,0.02968814,107480.0,107470.0,0.91516691]
[1761844622082,0.02968814,107480.0,107470.0,0.81926831]
[1761844623192,0.02968814,107480.0,107470.0,0.81918831]
[1761844623392,0.02968814,107480.0,107470.0,0.49050831]
[1761844623591,0.02968814,107480.0,107470.0,0.48770831]
[1761844623592,0.27334248,107480.0,107470.0,0.48770831]
[1761844623786,0.27334248,107480.0,107470.0,0.81634831]
[1761844624186,0.27334248,107480.0,107470.0,0.48770831]
[1761844624390,0.27334248,107480.0,107470.0,0.81922831]
[1761844624697,0.27334248,107480.0,107470.0,0.49050831]
[1761844625096,0.27334248,107480.0,107470.0,0.81634831]
[1761844625292,0.27334248,107480.0,107470.0,0.49050831]
[1761844625798,0.27334248,107480.0,107470.0,0.81910831]
[1761844626494,0.27334248,107480.0,107470.0,0.49050831]
[1761844626991,0.30619098,107480.0,107470.0,0.45818831]
[1761844627695,1.21779682,107480.0,107450.0,0.3608]
[1761844627993,0.49720868,107460.0,107400.0,1.5385]
[1761844628296,0.0198,107440.0,107430.0,0.04319]
[1761844628596,0.40828814,107440.0,107430.0,0.04319]
[1761844628791,0.03709516,107440.0,107430.0,0.12970831]
[1761844629104,0.3608,107450.0,107440.0,0.05679]
[1761844629295,0.02778175,107450.0,107440.0,0.47274831]
[1761844629491,0.02778175,107450.0,107440.0,0.83354831]
[1761844629699,0.02778175,107450.0,107440.0,0.92943291]
[1761844629892,0.24365434,107470.0,107460.0,0.05679]
[1761844630093,0.02498282,107470.0,107460.0,0.47002831]
[1761844630597,0.63933716,107470.0,107460.0,0.47006831]
[1761844630890,0.38578282,107470.0,107460.0,0.47006831]
[1761844631096,0.62943716,107470.0,107460.0,0.47006831]
[1761844631294,0.63343716,107470.0,107460.0,0.47006831]
[1761844631992,0.63343716,107470.0,107460.0,0.46994831]
[1761844632191,0.63543716,107470.0,107460.0,0.46994831]
[1761844633393,0.65523716,107470.0,107460.0,0.46994831]
[1761844633594,0.63543716,107470.0,107460.0,0.14050831]
[1761844633794,0.39178282,107470.0,107460.0,0.46982831]
[1761844634082,0.64533716,107470.0,107460.0,0.46982831]
[1761844634287,0.64533716,107470.0,107460.0,0.46978831]
[1761844634687,0.65523716,107470.0,107460.0,0.14050831]
[1761844634898,0.65523716,107470.0,107460.0,0.46978831]
[1761844635085,0.65523716,107470.0,107460.0,0.03502]
[1761844635292,0.99845275,107470.0,107440.0,0.0136]
[1761844635492,0.98505434,107450.0,107440.0,0.38798]
[1761844635691,0.98505434,107450.0,107440.0,0.05874]
[1761844635992,1.87505434,107450.0,107420.0,0.0136]
[1761844636197,0.62425434,107440.0,107430.0,0.45809831]
[1761844636604,0.62425434,107440.0,107430.0,0.37438]
[1761844636995,0.62425434,107440.0,107430.0,0.3743]
[1761844637199,0.3806,107440.0,107430.0,0.3743]
[1761844637496,0.3806,107440.0,107430.0,0.3753]
[1761844637696,0.3608,107440.0,107430.0,0.46001831]
[1761844637900,0.39381559,107450.0,107440.0,0.0585]
[1761844638102,0.65414534,107460.0,107450.0,0.04514]
[1761844638302,0.68714939,107460.0,107450.0,0.45801831]
[1761844638599,0.66404534,107460.0,107450.0,0.45801831]
[1761844639095,0.410491,107460.0,107450.0,0.45801831]
[1761844639297,0.39379279,107460.0,107450.0,0.45801831]
[1761844639495,0.63744713,107460.0,107450.0,0.45801831]
[1761844639702,0.65924713,107460.0,107450.0,0.45801831]
[1761844640000,0.65924713,107460.0,107440.0,0.38754]
[1761844640001,0.0198,107450.0,107440.0,0.38754]
[1761844640298,0.62425434,107450.0,107440.0,0.38754]
[1761844640495,0.62425434,107450.0,107440.0,0.47125831]
[1761844641000,0.6572465,107450.0,107440.0,0.47125831]
[1761844641293,0.6572465,107450.0,107440.0,0.14221831]
[1761844641501,0.6602465,107450.0,107440.0,0.14221831]
[1761844642097,0.68762379,107450.0,107440.0,0.14221831]
[1761844642296,0.68862379,107450.0,107440.0,0.0585]
[1761844642502,0.73831479,107450.0,107440.0,0.0585]
[1761844642804,0.738292,107450.0,107440.0,0.0585]
[1761844643401,0.848292,107450.0,107440.0,0.0585]
[1761844643793,0.738292,107450.0,107440.0,0.0585]
[1761844644193,0.688601,107450.0,107440.0,0.0585]
[1761844644596,0.42514666,107450.0,107440.0,0.14221831]
[1761844645201,0.03137729,107450.0,107440.0,0.48175715]
[1761844645600,0.00565374,107450.0,107440.0,0.98885715]
[1761844645903,0.001,107450.0,107440.0,0.98885715]
[1761844646515,0.001,107450.0,107440.0,0.89577265]
[1761844647004,0.001,107450.0,107440.0,0.98885715]
[1761844647406,0.001,107450.0,107440.0,0.74520281]
[1761844648307,0.001,107450.0,107440.0,0.64931831]
[1761844648808,0.60445434,107470.0,107460.0,0.05748]
[1761844649112,0.61435434,107470.0,107460.0,0.38604]
[1761844649315,0.62425434,107470.0,107460.0,0.46975831]
[1761844649511,0.0198,107450.0,107440.0,0.20374]
[1761844649815,0.0198,107450.0,107440.0,0.46975831]
[1761844649816,0.62425434,107450.0,107440.0,0.46975831]
[1761844650016,0.62425434,107450.0,107440.0,0.05744]
[1761844650017,1.10785434,107450.0,107440.0,0.05744]
[1761844650210,1.10505434,107450.0,107440.0,0.05744]
[1761844650415,1.10505434,107450.0,107440.0,0.05944]
[1761844650609,0.98505434,107450.0,107440.0,0.05944]
[1761844651318,0.98705434,107450.0,107440.0,0.05744]
[1761844651514,0.7434,107450.0,107440.0,0.05744]
[1761844651718,0.98705434,107450.0,107440.0,0.05744]
[1761844651914,0.98805434,107450.0,107440.0,0.05744]
[1761844652620,1.11805434,107450.0,107440.0,0.05744]
[1761844652819,0.98805434,107450.0,107440.0,0.05744]
[1761844653123,1.08113024,107450.0,107440.0,0.01336]
[1761844653716,0.0930933,107430.0,107420.0,0.05768]
[1761844654021,0.09438883,107430.0,107420.0,0.38604]
[1761844654216,0.09438883,107430.0,107420.0,0.46975831]
[1761844654920,0.09438883,107430.0,107420.0,0.47167831]
[1761844655120,0.45518883,107430.0,107420.0,0.14339831]
[1761844655325,1.07590317,107430.0,107420.0,0.002]
[1761844655625,0.04426,107410.0,107400.0,1.5385]
[1761844655821,0.7216,107410.0,107400.0,1.5385]
[1761844656019,0.72680021,107410.0,107400.0,1.62221831]
[1761844656214,0.77106021,107410.0,107400.0,1.62221831]
[1761844656824,0.77106021,107410.0,107400.0,1.62421831]
[1761844657026,1.02409454,107410.0,107400.0,1.62421831]
[1761844657217,0.36600021,107410.0,107400.0,1.62421831]
[1761844657418,0.00520021,107410.0,107400.0,1.62421831]
[1761844657612,0.00520021,107410.0,107400.0,2.07813761]
[1761844657818,0.00520021,107410.0,107400.0,2.32479195]
[1761844658220,0.00520021,107410.0,107400.0,2.92479195]
[1761844658517,0.4538868,107440.0,107430.0,0.04408]
[1761844658821,0.4538868,107440.0,107430.0,0.37256]
[1761844659022,0.0930868,107440.0,107430.0,0.37256]
[1761844660222,0.74180114,107440.0,107430.0,0.37252]
[1761844660520,0.04426,107430.0,107400.0,1.8993]
[1761844660825,0.40506,107420.0,107410.0,0.04408]
[1761844661026,0.64871434,107420.0,107410.0,0.04408]
[1761844661419,0.04555553,107420.0,107410.0,0.04408]
[1761844661620,0.28920987,107420.0,107410.0,0.04408]
[1761844662120,0.04426,107410.0,107400.0,1.9053]
[1761844662325,0.04426,107410.0,107400.0,1.8729]
[1761844662326,0.64871434,107410.0,107400.0,1.8729]
[1761844662522,0.53026021,107410.0,107400.0,0.0309]
[1761844662731,0.04426,107400.0,107370.0,0.3608]
[1761844662927,0.32836,107390.0,107360.0,0.00093774]
[1761844663134,0.90836,107390.0,107380.0,0.05748]
[1761844663321,0.9109618,107390.0,107380.0,0.05748]
[1761844663929,0.00267904,107390.0,107380.0,0.41828]
[1761844664231,0.00267904,107390.0,107380.0,0.05748]
[1761844664429,0.00267904,107390.0,107380.0,0.42428]
[1761844664732,0.00267904,107390.0,107360.0,1.50093774]
[1761844664733,1.17347904,107390.0,107360.0,1.50093774]
[1761844664927,0.3608,107370.0,107360.0,1.50093774]
[1761844665228,0.3608,107390.0,107380.0,0.05748]
[1761844665439,0.3608,107400.0,107390.0,0.04408]
[1761844665725,0.3608,107400.0,107390.0,0.37336]
[1761844665932,0.36989658,107400.0,107390.0,0.37336]
[1761844666136,0.00909658,107400.0,107390.0,0.73416]
[1761844666324,0.00909658,107400.0,107390.0,0.40488]
[1761844666630,0.00909658,107400.0,107390.0,0.37444]
[1761844666631,0.61635092,107400.0,107390.0,0.37444]
[1761844666829,0.37089658,107400.0,107390.0,0.37844]
[1761844667025,0.37089658,107400.0,107390.0,0.04808]
[1761844667226,0.61735092,107400.0,107390.0,0.005]
[1761844667427,0.37089658,107400.0,107390.0,0.33552]